bitfinex/quotes_ETHUSD_20240731
["timestamp","ask_amount","ask_price","bid_price","bid_amount"]
[1722451382345,6.02697,3318.5,3317.9,38.063267]
[1722451382548,2.4653,3318.9,3317.9,35.049387]
[1722451382854,3.01386,3318.0,3317.9,35.0]
[1722451383176,2.4653,3318.9,3317.9,35.0]
[1722451383471,3.0135,3318.4,3317.9,38.01393]
[1722451383665,3.0135,3318.4,3317.9,35.0]
[1722451383868,3.01299,3319.0,3317.9,35.0]
[1722451383869,3.01316,3318.8,3318.1,3.01376]
[1722451384026,3.01316,3318.8,3318.1,0.0602699]
[1722451384233,2.3509,3319.4,3318.1,0.0602699]
[1722451384234,2.3509,3319.4,3318.2,3.01362]
[1722451384543,2.3509,3319.4,3318.4,3.01348]
[1722451384755,3.01341,3318.5,3317.7,3.01407]
[1722451384959,3.01341,3318.5,3317.8,3.01402]
[1722451385135,3.01352,3318.4,3317.5,3.01427]
[1722451385331,2.3509,3319.4,3317.6,3.0]
[1722451385538,0.23509,3319.3,3318.3,3.01357]
[1722451385739,3.01307,3318.9,3318.4,0.06026002]
[1722451386046,3.01259,3319.4,3318.7,3.01314]
[1722451386242,3.01259,3319.4,3318.8,0.06025519]
[1722451386445,3.01208,3320.0,3318.8,0.06025519]
[1722451386672,3.01214,3319.9,3319.0,3.01294]
[1722451386870,2.4639,3320.4,3319.0,0.30731952]
[1722451387078,2.4639,3320.4,3318.3,5.2793]
[1722451387282,3.01276,3319.3,3318.4,3.0]
[1722451387571,2.4639,3320.4,3318.5,0.06025632]
[1722451387572,6.02437,3319.9,3318.5,0.06025632]
[1722451387867,2.4639,3320.4,3318.9,3.01303]
[1722451387868,3.0125,3319.5,3318.9,3.01303]
[1722451388081,3.01199,3320.1,3319.0,0.06024923]
[1722451388240,3.01264,3319.4,3319.0,0.06024923]
[1722451388643,3.01227,3319.8,3319.1,3.01286]
[1722451388971,5.47559,3320.4,3319.5,3.01249]
[1722451388972,3.01193,3320.2,3319.5,3.01249]
[1722451389339,0.301132,3320.8,3319.5,0.06024233]
[1722451389647,3.01112,3321.1,3319.9,3.01212]
[1722451389860,3.01178,3320.3,3320.0,0.06023076]
[1722451390148,3.01178,3320.3,3319.7,3.0123]
[1722451390352,3.01159,3320.5,3319.8,0.06023373]
[1722451390565,3.01159,3320.5,3319.9,3.01211]
[1722451390869,3.01124,3320.9,3320.2,3.01185]
[1722451391073,3.01124,3320.9,3320.3,0.06023156]
[1722451391278,3.01124,3320.9,3320.3,3.07198156]
[1722451391576,3.01123,3320.9,3320.3,3.07198156]
[1722451392672,3.01159,3320.5,3320.0,0.30723437]
[1722451392846,3.01148,3320.7,3319.9,3.01212]
[1722451393046,3.01168,3320.4,3319.5,5.36528]
[1722451393248,3.01196,3320.1,3319.3,3.01267]
[1722451393433,4.88315442,3320.7,3319.5,3.01244]
[1722451393658,3.01192,3320.2,3319.3,3.01262]
[1722451393860,3.01192,3320.2,3318.9,2.3754]
[1722451393861,1.57054642,3320.6,3319.5,3.01249]
[1722451394061,3.01139,3320.8,3320.1,3.0119]
[1722451394264,4.58412032,3321.1,3320.3,3.01174]
[1722451394441,3.01105,3321.1,3320.5,3.01159]
[1722451394641,3.01089,3321.3,3320.5,3.01159]
[1722451394863,1.57307032,3321.4,3320.6,0.0602248]
[1722451394864,3.01082,3321.4,3320.6,0.0602248]
[1722451395063,1.57307032,3321.5,3320.8,3.01124]
[1722451395378,1.57307032,3321.4,3320.9,0.06021762]
[1722451395550,3.01066,3321.6,3320.9,0.06021762]
[1722451395551,4.58373032,3321.6,3320.9,0.06021762]
[1722451395742,4.58381032,3321.5,3320.9,0.06021762]
[1722451396077,1.57307032,3321.8,3320.9,0.06021762]
[1722451396295,1.57307032,3321.8,3320.2,0.3033]
[1722451396296,1.57307032,3321.8,3321.3,3.01083]
[1722451396527,1.57307032,3321.9,3321.4,0.06020769]
[1722451396823,3.01029,3322.0,3321.4,0.06020769]
[1722451397111,3.01029,3322.0,3321.3,3.01086]
[1722451397112,3.01032,3321.9,3321.3,3.01086]
[1722451397258,3.01021,3322.1,3321.5,3.01067]
[1722451397459,4.89764467,3322.4,3321.7,3.01049]
[1722451397460,3.01003,3322.3,3321.7,3.01049]
[1722451397717,3.01005,3322.2,3321.8,0.06020166]
[1722451397923,3.01014,3322.1,3321.8,0.06020166]
[1722451398259,3.00999,3322.3,3321.8,0.06020166]
[1722451398507,3.01478,3322.5,3321.8,0.06020166]
[1722451398508,3.01005,3322.2,3321.8,0.06020166]
[1722451398797,3.01014,3322.1,3321.8,0.06020166]
[1722451398973,3.01014,3322.1,3321.3,3.01083]
[1722451398974,3.01032,3321.9,3321.4,0.06020221]
[1722451399290,3.01056,3321.7,3321.0,3.01106]
[1722451399491,3.01045,3321.8,3321.2,3.01093]
[1722451399815,3.01008,3322.2,3321.2,3.01093]
[1722451399976,3.00989,3322.4,3321.4,3.01072]
[1722451400187,3.01007,3322.2,3321.6,3.01054]
[1722451400493,3.01007,3322.2,3321.7,0.06020149]
[1722451401314,3.00989,3322.4,3321.7,3.07070149]
[1722451401519,3.01002,3322.3,3321.8,0.06020155]
[1722451401679,3.01005,3322.2,3321.8,0.06020155]
[1722451402099,3.01047,3321.8,3321.0,3.848754]
[1722451402279,3.01051,3321.7,3321.0,3.848754]
[1722451402498,3.01038,3321.9,3321.2,3.01095]
[1722451402706,3.01041,3321.8,3321.2,3.01095]
[1722451402868,3.01045,3321.8,3320.8,5.36548]
[1722451403069,3.01057,3321.7,3321.1,3.01104]
[1722451403270,3.01068,3321.5,3320.8,2.890748]
[1722451403522,3.01072,3321.5,3320.2,2.4293]
[1722451403746,3.01072,3321.5,3320.7,3.0114]
[1722451403941,3.01053,3321.7,3321.0,3.01113]
[1722451404238,3.01097,3321.2,3320.3,3.01173]
[1722451404380,3.01114,3321.0,3320.3,3.01173]
[1722451404580,2.4279,3322.0,3320.3,3.74451707]
[1722451404581,3.01111,3321.1,3320.3,3.74451707]
[1722451404885,3.01069,3321.5,3320.7,3.01139]
[1722451405088,3.0106,3321.6,3320.9,3.01117]
[1722451405286,3.0106,3321.6,3321.0,0.06021679]
[1722451405614,3.0107,3321.5,3320.9,3.07138679]
[1722451405781,3.01052,3321.7,3320.9,3.07138679]
[1722451406119,3.01077,3321.5,3320.9,0.06021679]
[1722451406330,3.01086,3321.3,3320.5,3.01152]
[1722451406531,3.01086,3321.3,3320.6,3.01144]
[1722451407039,2.4279,3322.0,3320.6,3.01144]
[1722451407040,3.01065,3321.6,3320.8,3.01128]
[1722451407176,3.01037,3321.9,3320.3,0.73278707]
[1722451407380,3.01093,3321.3,3320.6,3.01145]
[1722451407582,3.25316,3321.9,3320.5,3.01156]
[1722451407583,3.01057,3321.7,3320.5,3.01156]
[1722451407783,4.57191859,3322.5,3320.8,3.01125]
[1722451407784,3.01018,3322.1,3320.8,3.01125]
[1722451408031,3.01032,3321.9,3321.3,3.01086]
[1722451408344,3.00994,3322.4,3320.9,0.06020605]
[1722451408490,3.01043,3321.8,3321.2,3.0109]
[1722451408684,3.01033,3321.9,3321.3,3.01085]
[1722451409084,3.01024,3322.0,3321.4,3.01075]
[1722451409341,3.01037,3321.9,3321.2,3.01088]
[1722451409479,3.01007,3322.2,3321.0,3.0111]
[1722451409687,0.3311564,3322.1,3321.0,3.01107]
[1722451409890,3.0105,3321.7,3321.2,3.01095]
[1722451410085,3.01028,3322.0,3321.3,3.01084]
[1722451410327,3.01049,3321.8,3321.1,3.01096]
[1722451410635,3.01036,3321.9,3320.5,3.01155]
[1722451410818,3.01096,3321.2,3320.5,3.01155]
[1722451411222,6.02171,3321.4,3320.7,3.01141]
[1722451411387,3.01087,3321.3,3320.7,3.01141]
[1722451411734,3.01075,3321.5,3320.9,3.01122]
[1722451411949,3.01075,3321.5,3320.7,3.01134]
[1722451412141,0.301036,3321.8,3320.7,3.01134]
[1722451412142,3.01092,3321.3,3320.7,3.01134]
[1722451412448,3.01114,3321.0,3320.4,3.62905071]
[1722451413588,3.01142,3320.7,3320.1,3.01187]
[1722451413829,2.3937,3321.6,3319.9,3.32718879]
[1722451413830,3.01137,3320.8,3320.2,3.01181]
[1722451414009,3.01148,3320.7,3319.9,3.01209]
[1722451414183,3.01073,3321.5,3319.9,3.01209]
[1722451414184,6.02275,3320.8,3319.9,3.01209]
[1722451414388,3.01118,3321.0,3320.1,3.0119]
[1722451414596,3.01135,3320.8,3320.1,3.01187]
[1722451414792,3.01161,3320.5,3319.9,3.01207]
[1722451415045,3.01142,3320.7,3320.0,3.01199]
[1722451415253,3.01125,3320.9,3320.1,3.01195]
[1722451415546,3.01139,3320.8,3320.2,3.01184]
[1722451415748,3.01158,3320.6,3320.0,3.01196]
[1722451416251,3.01149,3320.7,3320.0,3.01196]
[1722451416418,3.01195,3320.2,3319.4,3.01256]
[1722451416591,3.01195,3320.2,3319.6,3.01237]
[1722451416791,3.01171,3320.4,3319.7,3.01226]
[1722451416989,6.02313,3320.6,3320.0,3.01201]
[1722451417195,3.01178,3320.3,3319.7,3.01231]
[1722451418026,3.01201,3320.1,3319.5,3.01246]
[1722451418226,3.01201,3320.1,3319.6,0.301246]
[1722451418525,3.01192,3320.2,3319.6,3.313656]
[1722451419033,1.56855195,3321.2,3319.6,3.313656]
[1722451419034,3.0115,3320.7,3319.8,3.01217]
[1722451419221,3.01167,3320.5,3319.9,3.07234451]
[1722451419427,3.01144,3320.7,3320.0,3.012]
[1722451419635,3.01155,3320.6,3320.0,3.012]
[1722451419835,3.01144,3320.7,3320.1,3.07211509]
[1722451420127,3.01079,3321.4,3320.1,0.06023509]
[1722451420128,3.01161,3320.5,3320.1,0.06023509]
[1722451420352,3.01178,3320.3,3320.1,0.06023509]
[1722451420554,3.01144,3320.7,3320.0,3.01198]
[1722451420753,3.01144,3320.7,3320.1,3.07212135]
[1722451420935,3.01159,3320.5,3320.1,0.06023135]
[1722451421246,3.01159,3320.5,3319.8,3.01218]
[1722451421247,3.01168,3320.4,3319.8,3.01218]
[1722451421459,1.56853196,3321.4,3319.9,3.01212]
[1722451421460,3.01155,3320.6,3319.9,3.01212]
[1722451421771,3.01145,3320.7,3319.9,0.06023258]
[1722451421933,6.02295,3320.7,3320.1,3.01195]
[1722451422116,3.01174,3320.4,3319.7,3.01225]
[1722451422318,3.01178,3320.3,3319.7,3.313525]
[1722451422528,3.01134,3320.8,3319.7,3.313495]
[1722451422771,3.01099,3321.2,3319.5,3.01245]
[1722451422772,3.01204,3320.1,3319.5,3.01245]
[1722451423077,3.01204,3320.1,3319.6,3.0124]
[1722451423280,3.01204,3320.1,3319.5,3.01249]
[1722451423410,3.01181,3320.3,3319.1,2.4114]
[1722451423613,3.0116,3320.5,3319.9,3.01209]
[1722451423861,3.01168,3320.4,3319.9,3.01209]
[1722451424073,3.0116,3320.5,3320.0,3.01202]
[1722451424280,3.0116,3320.5,3319.9,0.06023529]
[1722451424281,3.01166,3320.5,3319.9,0.06023529]
[1722451424438,3.01145,3320.7,3320.1,3.0119]
[1722451424771,2.3511,3321.1,3320.1,0.06023159]
[1722451424936,3.01159,3320.5,3320.1,0.06023159]
[1722451425111,3.01196,3320.1,3319.5,3.01247]
[1722451425317,3.01192,3320.2,3319.5,3.01243]
[1722451425594,3.01145,3320.7,3319.5,3.614931]
[1722451425595,3.01178,3320.3,3319.5,3.614931]
[1722451425754,3.01182,3320.3,3319.7,3.01225]
[1722451426070,3.01148,3320.7,3320.0,3.01199]
[1722451426236,5.36216,3321.1,3320.0,3.01199]
[1722451426237,5.36216,3321.1,3320.1,0.06023151]
[1722451426444,3.01155,3320.6,3320.1,0.06023151]
[1722451426760,3.0116,3320.5,3320.1,0.06023151]
[1722451426969,3.0117,3320.4,3319.8,3.01217]
[1722451427167,3.01186,3320.2,3319.7,3.01231]
[1722451427495,3.0117,3320.4,3319.8,3.01222]
[1722451427662,3.0117,3320.4,3319.6,3.01234]
[1722451427832,3.01153,3320.6,3319.8,3.01215]
[1722451428183,3.01153,3320.6,3319.3,3.01265]
[1722451428349,3.547386,3321.0,3319.4,3.0]
[1722451428350,0.536216,3321.0,3319.4,3.0]
[1722451428543,3.0117,3320.4,3319.4,3.0]
[1722451428866,3.01169,3320.4,3319.7,3.01227]
[1722451429183,2.10751637,3321.0,3319.8,0.301227]
[1722451429329,3.01177,3320.3,3319.7,3.01227]
[1722451429525,3.01169,3320.4,3319.4,6.01251]
[1722451429761,3.01169,3320.4,3319.1,2.4114]
[1722451429762,1.57130037,3320.9,3319.5,3.01245]
[1722451429965,3.01206,3320.0,3319.3,3.01263]
[1722451430138,0.536216,3321.0,3319.1,3.01282]
[1722451430139,3.01229,3319.8,3319.1,3.01282]
[1722451430343,3.01229,3319.8,3318.9,6.013]
[1722451430344,3.01246,3319.6,3318.9,3.01304]
[1722451430537,3.01246,3319.6,3318.9,3.615662]
[1722451430877,3.01255,3319.5,3318.9,3.615662]
[1722451431499,1.57233584,3320.0,3318.5,3.01335]
[1722451431500,3.01284,3319.2,3318.5,3.01335]
[1722451431776,3.01287,3319.1,3318.5,3.01335]
[1722451431989,1.57233584,3319.6,3318.2,3.01365]
[1722451431990,1.57233584,3319.5,3318.2,3.01365]
[1722451432131,3.01282,3319.2,3318.4,3.01343]
[1722451432333,3.01282,3319.2,3318.7,3.01322]
[1722451433233,3.01282,3319.2,3318.5,3.01334]
[1722451433455,1.57439644,3319.7,3318.5,0.4594357]
[1722451433456,3.01296,3319.0,3318.5,0.4594357]
[1722451433645,3.01286,3319.1,3318.4,3.01345]
[1722451433897,3.01301,3319.0,3318.4,3.01345]
[1722451434199,3.01286,3319.1,3318.1,2.293]
[1722451434200,3.01323,3318.7,3318.1,3.01375]
[1722451434386,3.01271,3319.3,3318.0,3.01381]
[1722451434387,3.01332,3318.6,3318.0,3.01381]
[1722451434594,3.01314,3318.8,3318.2,3.01362]
[1722451434754,3.0132,3318.8,3318.2,3.01362]
[1722451435113,3.0132,3318.8,3318.1,3.01375]
[1722451435114,3.01333,3318.6,3318.1,3.01375]
[1722451435396,3.0132,3318.8,3318.0,3.01379]
[1722451435397,6.0264,3318.8,3318.0,3.01379]
[1722451435604,3.013,3319.0,3318.1,0.06026798]
[1722451435813,3.01282,3319.2,3318.5,3.01336]
[1722451435957,3.01303,3319.0,3318.2,3.01364]
[1722451436159,3.01303,3319.0,3318.3,0.06026404]
[1722451436357,3.01314,3318.8,3318.3,0.06026404]
[1722451436770,3.01314,3318.8,3318.1,3.01374]
[1722451436771,3.01324,3318.7,3318.1,3.01374]
[1722451437454,3.01349,3318.5,3317.8,3.01403]
[1722451437659,3.01364,3318.3,3317.7,3.01413]
[1722451437914,3.01326,3318.7,3318.0,3.01385]
[1722451438113,3.01319,3318.8,3318.2,3.0136]
[1722451438254,3.01304,3318.9,3318.3,3.01353]
[1722451438658,3.01309,3318.9,3318.3,3.01351]
[1722451438976,2.3115,3319.3,3318.5,3.01339]
[1722451439170,3.24399,3319.2,3318.5,3.01339]
[1722451439414,3.24399,3319.2,3318.5,3.01335]
[1722451439555,3.24399,3319.2,3318.5,3.01333]
[1722451439908,3.24399,3319.2,3318.3,3.01356]
[1722451439909,3.01297,3319.0,3318.4,3.01344]
[1722451440119,3.01298,3319.0,3318.5,3.01333]
[1722451440343,3.01298,3319.0,3318.4,3.01347]
[1722451440637,3.01298,3319.0,3318.3,3.01353]
[1722451440840,0.23115,3319.2,3318.4,0.06026414]
[1722451441051,3.01235,3319.7,3318.9,3.01299]
[1722451441333,3.01247,3319.6,3319.0,3.0129]
[1722451441485,3.01235,3319.7,3319.0,3.01288]
[1722451441885,3.01235,3319.7,3319.1,3.01285]
[1722451442104,3.01192,3320.2,3319.3,3.01266]
[1722451442286,3.01213,3320.0,3319.2,0.06025259]
[1722451442488,3.01213,3320.0,3318.7,3.01321]
[1722451442489,3.01208,3320.0,3318.8,3.01308]
[1722451442688,3.01274,3319.3,3318.7,3.01322]
[1722451442941,3.01264,3319.4,3318.8,3.01308]
[1722451443097,3.01264,3319.4,3318.6,3.01324]
[1722451443288,3.01264,3319.4,3318.7,3.01321]
[1722451443488,3.01268,3319.3,3318.7,3.01321]
[1722451443687,3.01279,3319.2,3318.5,6.0267]
[1722451443888,3.01279,3319.2,3318.5,0.6328053]
[1722451444153,3.01263,3319.4,3318.6,0.06026026]
[1722451444354,3.96557246,3320.0,3318.6,0.06026026]
[1722451444488,3.96557246,3320.0,3319.0,3.01287]
[1722451444489,3.01228,3319.8,3319.0,3.01287]
[1722451444689,3.0117,3320.4,3319.3,3.01259]
[1722451444690,1.56997246,3320.4,3319.3,3.01259]
[1722451444970,2.3956,3320.5,3319.9,3.01212]
[1722451445237,3.01152,3320.6,3319.9,3.01206]
[1722451445401,3.01136,3320.8,3319.9,3.01206]
[1722451445609,3.312626,3320.7,3320.1,3.01195]
[1722451445910,3.01218,3319.9,3319.2,3.01268]
[1722451446127,2.4992,3320.3,3319.2,3.01268]
[1722451446128,3.01199,3320.1,3319.2,3.01268]
[1722451446333,2.4992,3320.3,3319.0,3.01291]
[1722451446334,3.01218,3319.9,3319.0,3.01291]
[1722451446488,3.012,3320.1,3319.4,3.01253]
[1722451446847,3.01215,3319.9,3319.3,3.07287557]
[1722451446991,3.864301,3320.1,3319.4,3.01257]
[1722451447342,5.51101,3320.3,3319.7,3.01226]
[1722451447343,3.01181,3320.3,3319.7,3.01226]
[1722451447554,1.87135852,3320.7,3319.9,3.01207]
[1722451447555,3.01163,3320.5,3319.9,3.01207]
[1722451447754,3.01169,3320.4,3319.9,3.01207]
[1722451447960,3.312576,3320.7,3319.8,0.06023991]
[1722451448166,2.4548,3320.8,3320.2,3.0118]
[1722451448604,3.01141,3320.7,3320.0,6.08419578]
[1722451448805,3.01157,3320.6,3320.0,3.07219578]
[1722451449239,5.46613,3320.8,3318.5,5.47095]
[1722451449240,3.01195,3320.1,3318.5,5.47095]
[1722451449507,3.01186,3320.3,3319.6,3.01235]
[1722451449742,1.57168538,3320.5,3318.9,3.01304]
[1722451449943,3.01178,3320.3,3319.6,3.01232]
[1722451450258,3.01192,3320.2,3319.6,3.01232]
[1722451450422,3.01192,3320.2,3319.7,35.0]
[1722451450834,3.01222,3319.8,3319.7,35.0]
[1722451451145,0.301192,3320.2,3319.5,3.01243]
[1722451451354,3.01188,3320.2,3319.6,3.01241]
[1722451451507,1.57168538,3320.4,3318.5,2.4576]
[1722451451706,3.01275,3319.3,3318.7,3.01317]
[1722451451963,3.01275,3319.3,3318.1,0.31483101]
[1722451451964,3.01278,3319.2,3318.6,3.01326]
[1722451452105,3.01278,3319.2,3318.7,35.0]
[1722451452309,2.436,3319.9,3318.7,35.0]
[1722451452310,3.01253,3319.5,3318.7,35.0]
[1722451452512,2.436,3319.9,3318.7,35.0]
[1722451452513,4.00917074,3319.9,3319.1,3.01277]
[1722451452754,4.00917074,3319.9,3319.2,3.01271]
[1722451452755,5.44817,3319.9,3319.2,3.01271]
[1722451453071,3.01246,3319.6,3319.0,3.01289]
[1722451453580,3.01246,3319.6,3319.1,0.06025085]
[1722451453767,3.01246,3319.6,3318.8,3.01313]
[1722451453768,3.0125,3319.5,3318.8,3.01313]
[1722451453959,4.00917074,3319.9,3319.0,3.01288]
[1722451454279,3.01255,3319.5,3318.9,3.01302]
[1722451454483,3.01237,3319.7,3319.1,3.0128]
[1722451454645,3.01223,3319.8,3319.2,3.07301088]
[1722451454847,3.01223,3319.8,3319.2,3.01276]
[1722451455092,3.01225,3319.8,3318.8,2.98520829]
[1722451455299,7.02807074,3320.2,3319.5,3.01242]
[1722451455461,3.01195,3320.1,3319.6,0.06024218]
[1722451455661,4.58606175,3320.3,3319.7,35.0]
[1722451456192,3.01187,3320.2,3319.7,35.0]
[1722451456402,1.57423175,3320.3,3319.7,35.0]
[1722451456550,3.01171,3320.4,3319.7,35.0]
[1722451456901,3.01192,3320.2,3319.7,35.0]
[1722451457196,3.01203,3320.1,3319.7,35.0]
[1722451457398,3.01215,3319.9,3319.7,35.0]
[1722451457699,3.01203,3320.1,3319.7,35.0]
[1722451457891,3.01222,3319.8,3319.7,35.0]
[1722451458103,6.02417,3320.0,3319.7,35.0]
[1722451458309,3.77197018,3320.0,3319.7,35.0]
[1722451458599,3.47032418,3320.4,3319.7,35.0]
[1722451458600,3.0122,3319.9,3319.7,35.0]
[1722451459033,1.57423175,3320.1,3319.7,35.0]
[1722451459034,1.57578503,3320.1,3319.7,35.0]
[1722451459150,4.58764221,3320.2,3319.7,35.0]
[1722451459483,1.57578221,3320.2,3319.8,3.01221]
[1722451459682,3.01172,3320.4,3319.8,5.99736829]
[1722451459683,1.57578221,3320.3,3319.8,5.99736829]
[1722451459888,4.58750221,3320.4,3319.8,5.99736829]
[1722451460048,4.58757221,3320.3,3319.8,3.01216]
[1722451460400,1.57578221,3320.2,3319.9,3.01213]
[1722451460572,1.57578221,3320.3,3319.9,3.01213]
[1722451460946,4.58756221,3320.3,3319.7,38.01232]
[1722451461171,1.57578221,3320.3,3319.9,3.01213]
[1722451461586,1.57578221,3320.3,3319.9,3.01207]
[1722451462098,1.57578221,3320.2,3319.9,3.01207]
[1722451462302,1.57578221,3320.2,3319.9,9.00932829]
[1722451462496,3.0115,3320.6,3320.0,3.01202]
[1722451462680,1.57636184,3320.2,3320.0,3.01202]
[1722451462920,1.57643448,3320.2,3319.7,38.01229]
[1722451463101,1.57643448,3320.2,3319.9,3.01212]
[1722451463604,1.57643448,3320.2,3319.9,2.98520829]
[1722451463803,1.57643448,3320.3,3319.9,2.98520829]
[1722451464190,1.57643448,3320.3,3319.9,5.99726829]
[1722451464421,1.57643448,3320.3,3319.9,6.0575044]
[1722451464590,1.57640002,3320.2,3319.7,41.02456]
[1722451464790,1.57640002,3320.2,3319.8,3.0122]
[1722451465015,1.57640002,3320.2,3319.9,0.06023671]
[1722451465190,1.57640002,3320.3,3319.8,3.07243673]
[1722451465537,1.57640002,3320.2,3319.8,3.07243673]
[1722451465893,1.57640002,3320.2,3319.9,3.01211]
[1722451466093,3.01173,3320.4,3319.9,3.07234669]
[1722451466390,1.57636953,3320.2,3319.9,3.07234669]
[1722451466594,1.57636953,3320.2,3319.9,0.06023669]
[1722451466806,1.57636953,3320.2,3319.7,35.0]
[1722451466807,1.57636953,3320.0,3319.7,35.0]
[1722451467431,3.01186,3320.2,3319.7,35.0]
[1722451467432,1.57636953,3320.1,3319.7,35.0]
[1722451467635,1.57636953,3320.0,3319.7,35.0]
[1722451467846,1.57636953,3320.0,3319.7,36.43080954]
[1722451468045,1.57636953,3320.0,3319.7,39.44308954]
[1722451468334,1.57636953,3320.0,3319.8,3.01222]
[1722451468544,1.57636953,3320.0,3319.9,2.98520829]
[1722451468844,1.57636953,3320.2,3319.9,2.98520829]
[1722451468990,1.57636953,3320.1,3319.7,39.44309954]
[1722451469184,1.57636953,3320.1,3319.8,3.01218]
[1722451469408,1.57636953,3320.0,3319.7,36.43080954]
[1722451469601,1.57660673,3320.1,3319.7,36.43080954]
[1722451469855,1.57660673,3320.0,3319.7,36.43080954]
[1722451470737,1.57660673,3319.8,3319.7,35.0]
[1722451471030,1.57660673,3319.9,3319.7,35.0]
[1722451471239,4.58879673,3319.9,3319.7,35.0]
[1722451471455,1.57660673,3319.8,3319.7,35.0]
[1722451471610,1.57660673,3319.8,3318.7,2.4111]
[1722451471611,3.01252,3319.5,3318.8,3.01312]
[1722451471810,3.0127,3319.3,3318.7,3.01322]
[1722451471998,4.58980788,3319.3,3318.9,35.0]
[1722451472193,4.58987788,3319.2,3318.9,35.0]
[1722451472508,1.57710788,3319.2,3318.9,35.0]
[1722451472811,1.57710788,3319.3,3318.9,35.0]
[1722451473011,1.57710788,3319.3,3319.0,3.01289]
[1722451473196,1.57717132,3319.4,3318.9,37.98520829]
[1722451473397,3.01295,3319.0,3318.9,35.0]
[1722451473743,1.57717132,3319.0,3318.9,35.0]
[1722451474026,1.57717132,3319.1,3318.9,35.0]
[1722451474232,1.57717132,3319.1,3319.0,3.01295]
[1722451474435,1.57717132,3319.4,3319.2,3.01277]
[1722451474725,1.57717132,3319.6,3319.4,3.01252]
[1722451474897,1.57717132,3319.8,3319.6,3.01241]
[1722451475103,1.57717132,3319.7,3319.4,3.01259]
[1722451475323,1.57717132,3319.8,3319.6,3.01236]
[1722451475531,3.01187,3320.2,3319.7,3.01232]
[1722451475532,1.57717132,3319.9,3319.7,3.01232]
[1722451475714,1.57717132,3319.9,3319.8,3.01222]
[1722451475892,1.57717132,3320.0,3319.8,3.01222]
[1722451476723,1.57695883,3320.0,3319.8,3.01222]
[1722451476924,1.57695883,3320.0,3319.8,3.01217]
[1722451477122,1.57695883,3320.0,3319.7,3.01223]
[1722451477501,1.57695883,3320.0,3319.9,35.0]
[1722451477716,1.57697603,3320.0,3319.9,35.0]
[1722451477891,3.01188,3320.2,3319.9,35.0]
[1722451477892,4.9042306,3320.2,3319.9,35.0]
[1722451478118,1.57697462,3320.0,3319.9,35.0]
[1722451478323,1.57697462,3320.0,3319.9,38.01211]
[1722451478558,1.57697462,3320.0,3319.9,40.99731829]
[1722451478764,5.21916236,3320.7,3320.3,6.02354]
[1722451478765,1.57697462,3320.4,3320.3,6.02354]
[1722451479055,1.57697462,3320.5,3320.3,3.01177]
[1722451479278,1.57697462,3320.5,3320.4,3.01168]
[1722451479422,1.57697462,3320.5,3320.4,6.625705]
[1722451479622,1.57697462,3320.8,3320.4,0.602345]
[1722451479819,1.57697462,3321.0,3320.9,3.01123]
[1722451480029,7.47,3321.2,3320.9,3.01123]
[1722451480231,1.57632039,3321.1,3320.9,3.01123]
[1722451480458,1.57632039,3321.2,3320.9,3.01123]
[1722451480768,1.57602311,3321.2,3320.9,3.0112]
[1722451480953,1.57602311,3321.2,3320.9,3.01117]
[1722451481128,1.57602311,3321.2,3320.7,3.07160208]
[1722451481129,1.57602311,3321.2,3321.0,35.0]
[1722451481325,1.57602311,3321.3,3321.0,35.0]
[1722451481634,1.57602311,3321.1,3321.0,35.0]
[1722451481839,1.57602311,3321.2,3321.0,35.0]
[1722451482165,7.47,3321.7,3321.0,35.0]
[1722451482381,7.47,3321.7,3321.3,3.01086]
[1722451482382,1.57577577,3321.5,3321.3,3.01086]
[1722451482670,1.57577577,3321.6,3321.5,3.01068]
[1722451482991,9.04577577,3321.7,3321.5,3.01068]
[1722451483202,7.47,3321.7,3321.6,3.01059]
[1722451483359,1.57577577,3322.1,3321.6,3.01056]
[1722451483544,5.43167,3322.4,3321.8,3.01034]
[1722451483743,1.57460611,3322.0,3321.8,3.01034]
[1722451484082,1.57460611,3322.1,3321.6,3.01059]
[1722451484583,1.57460611,3322.0,3321.7,3.01049]
[1722451484873,1.57460611,3322.1,3321.6,3.01058]
[1722451485098,1.57460611,3322.1,3321.8,3.0104]
[1722451485276,1.57460611,3322.3,3322.0,3.01023]
[1722451485482,2.4218,3322.4,3322.2,3.01005]
[1722451485483,1.573284,3322.4,3322.2,3.01005]
[1722451485684,1.573284,3322.4,3322.3,3.00996]
[1722451485913,0.005,3322.5,3322.3,38.00996]
[1722451486462,0.005,3322.5,3322.4,3.00987]
[1722451488602,0.005,3322.5,3322.3,35.0]
[1722451489015,0.005,3322.5,3322.0,3.01016]
[1722451489163,0.005,3322.5,3322.1,0.06019671]
[1722451489381,0.005,3322.5,3322.4,3.00987]
[1722451489578,0.005,3322.5,3322.4,38.00987]
[1722451489781,0.005,3322.5,3322.4,35.0]
[1722451490482,0.005,3322.5,3322.3,3.0099]
[1722451490785,0.005,3322.5,3322.4,3.00987]
[1722451491117,0.005,3322.5,3322.4,6.01974]
[1722451491320,0.005,3322.5,3322.4,6.62774118]
[1722451491527,0.005,3322.5,3322.4,3.61787118]
[1722451491724,0.005,3322.5,3322.4,35.60800118]
[1722451492023,0.005,3322.5,3322.4,41.62774118]
[1722451492591,0.005,3322.5,3322.4,38.61787118]
[1722451492812,0.005,3322.5,3322.4,41.62774118]
[1722451493316,0.005,3322.5,3322.4,35.60800118]
[1722451493887,0.005,3322.5,3322.4,35.0]
[1722451494085,3.01478,3322.5,3322.4,35.0]
[1722451494337,3.01001,3322.3,3321.8,7.29]
[1722451494682,3.0102,3322.1,3321.9,35.0]